Workbook

Sheet Intro
G1: One-shot Introduction to Inequality, Gini, and Redistribution via Microsoft Excel
G2: by
G3: Humberto Barreto
G4: hbarreto@depauw,edu
A6: This Excel workbook explains fundamental concepts used in discussions of income and wealth inequality, including redistribution and the Gini coefficient.
A8: It is completely self-contained and all you have to do is read (scrolling down as needed), follow instructions (especially obey the Click commands), and pay close attention.
A10: Software Requirements:
B11: You need Microsoft Excel, Windows desktop version 2007 or greater to get full functionality from this file.
C12: The file can be opened with Mac Excel, but it uses Visual Basic code that may not be fully supported on a Mac.
C13: This file will NOT work with a browser-version of Excel because it contains macros. You must open it with a desktop-version of Excel.
B15: You must be sure to Enable Content or the buttons and code in this macro-enabled workbook will not work.
A17: Let's see if you are ready to go -- click the button below.
A20: If the button above does not display a message on your screen when you click it, please close the workbook and open it again, making sure that you Enable Content.
B21: Search "enable macros" in Excel's Help for more information on how to do this.
B22: You can also click the link below for help from the internet:
B23: www.google.com/search?q=excel+enable+macros
A25: The model of social cooperation that is implemented in this Excel file was inspired by Nozick's Anarchy, State, and Utopia (1974).
A27: Proceed to the NozickText sheet by clicking on the tab below when you are ready.

Sheet NozickText
A1: Robert Nozick (1974) Anarchy, State, and Utopia | H1: Read the except below from Nozick and notes to the right that highlight key passages and provide additional information.
A2: https://en.wikipedia.org/wiki/Anarchy,_State,_and_Utopia | H2: Scroll down as needed
O3: This sheet is set up to print on 3 landscaped pages.
A5: p. 183
O19: a society is a cooperative venture for mutual advantage
A21: p. 184
O22: social cooperation makes possible a better life for all
O23: than any would have if each were to live solely by his own efforts
O29: they each prefer a larger to a lesser share
O35: principles of social justice assign basic rights and duties and
O36: distribute benefits and burdens of social cooperation
O40: John Rawls is Nozick's opponent (and friend) in a debate about inequality:
O41: https://plato.stanford.edu/entries/rawls/
O42: Their argument began in the 1960s and, although both died in 2002, their
O43: ideas remain central to the way we think about inequality and redistribution.
O46: Si is what each person gets working Separately
O53: S is GDP working separately and T is GDP working Together, cooperating.
O54: T >>> S
O55: But then we have to figure out how to distribute T to each person.
O56: This is the problem of distributive social justice.
G59: . . .
A60: p. 185 | O60: A fundamental question:
O61: Why does social cooperation create the problem of distributive justice?
O66: There would be no need to worry about distributive justice (allocating the
O67: benefits and burdens of social cooperation) if everyone was independent.
O74: There could be conflicting claims between independent individuals, but
O75: read on to see that we reject such claims precisely because the individuals
O76: are independent.
O80: https://en.wikipedia.org/wiki/Robinson_Crusoe
O91: https://www.hetwebsite.net/het/profiles/friedman.htm
O114: In the case of noncooperation, no theory of justice is needed.
O115: Each person is separate so they consume whatever they individually
O116: produce on their own island.
O117: One person might have less than another because their island is less fertile
O118: or they do not work as hard, but that does not mean they can argue that
O119: the other person must share or give.
O122: Social cooperation boosts output and creates a problem:
O123: Who is entitled to what?
A124: p. 186 | O124: This is another way of stating the distributive justice question.
O127: Read Nozick's book or an explanation like the one below if you
O128: are interested in the entitlement theory:
O129: plato.stanford.edu/entries/nozick-political/
O131: Understanding the problem created by social cooperation is the learning
O132: goal of this Excel workbook.
O134: Proceed to the SocialCooperation sheet to see an Excel implementation of
O135: how social cooperation creates extra output which then means we need a
O136: mechanism with which to distribute the output.
O137: We can redistribute the output, taking from those who are well off and giving
O138: to those who are not, but -- as you will see -- this carries a cost.

Sheet SocialCooperation
A1: 1: A Model of Social Cooperation | H1: 1: You are here | N1: This is a progress bar -- it updates as you work through the material. | BA1: 2: The Effects of Social Cooperation | BI1: 2: You are here | DA1: 3: Options for Distributing the Output | DJ1: 3: You are here | FA1: 4: Modeling the Feedback Mechanism | FM1: 4: You are here | HA1: 5: Modeling Redistribution | HM1: 5: You are here | JA1: 6: How Does Redistribution Affect Effort? | JM1: 6: You are here
FA2: Redistribution might lessen effort (and investment), so total output would shrink. | HA2: We continue building our model by redistributing the output: we can use the yellow backgrounded cells to tax people (presumably the rich) and give others transfers (presumably the poor). | JA2: We know output rises compared to independent, individual production (I) when we group together into a social unit (S).
A3: Read carefully and follow instructions, then answer the numbered questions in red, bold text. There are 13 questions in all. | BA3: If individuals associate and live in a society, they are much more productive. | DA3: Now that we have produced a lot of output with social cooperation, we have options for how to distribute it. | FA3: This is a key feedback mechanism and it is unclear how strong this effect is in the real world. | HA3: Play around a bit, changing values in the yellow-backgrounded cells, keeping an eye on the impacts on taxes, transfers, and the charts below. Press F9 a few times to see what is going on. | JA3: We also know effort (E) and randomness affect productivity.
A4: You can change parameter values in cells with yellow backgrounds (like B7 and B13 below). | BA4: Their individual productivity is multiplied by the social productivity parameter, S, so their individual output increases and SOCIETY'S GDP rockets. | DA4: When we make things we call it output; when we get some of the output, we call it income. | FA4: It might be that a little redistribution doesn't do much to effort, but a lot of redistribution produces a big decrease in effort. | HA4: Read the table from left to right, following this flow chart of the process: | JA4: Our final version of our toy model will incorporate a feedback mechanism so that taxation loops back and affects effort, like this:
DA5: One way to distribute the output would be to give each person the output they produced. | FA5: The effect probably varies across societies, stronger in some and weaker in others. Social cohesion and group identity help determine the effect of redistribution on effort.
A6: Each person has an individual and social productivity parameter, below is just the individual productivity, which Nozick says is S for "acting separately", but we will use I for INDIVIDUAL | BA6: 20 | BB6: social productivity, S | BD6: 3) What letter did Nozick use for this? | FA6: Suppose, for example, that a society experienced a large influx of immigrants. Perhaps new government programs are proposed to help the newcomers paid for with higher taxes on well-off, established locals.
B7: 10 | C7: individual productivty, I | DA7: Another way would be to divide it equally. | FC7: 7) Would you then expect a large or small decrease in effort from an increase in redistribution? Why? | HB7: =AVERAGE(HB9:HB18) -> 138.7827728 | HC7: avg income | HH7: =AVERAGE(HH9:HH18) -> 138.7827728 | HI7: avg income
A8: The variable "I" could also stand for ISOLATED or INDEPENDENT. | BA8: 4) How much does productivity actually increase when humans cooperate and form societies? | DA8: IF dividing it equally had no effect on effort, below is the egalitarian income distribution we would get. | HA8: Rank | HB8: Initial | HC8: Person | HD8: Tax % | HE8: Tax | HF8: Transfer % | HG8: Transfer | HH8: After TT | HI8: Person | HJ8: Rank | JA8: In other words, effort no longer stays constant at 100%. This is an important extension of the model.
A9: Each person also gives a certain EFFORT (E), which we assume is 100% -- at first. We will change this later. | FA9: We begin our modeling of the feedback mechanism with an Initial distribution where each person receives what they produced (given their I and S parameters). | HA9: 1 | HB9: =VLOOKUP(HA9,$FA$16:$FB$25,2,FALSE) -> 57.96910592 | HC9: =VLOOKUP(HA9,$FA$16:$FC$25,3,FALSE) -> G | HD9: 0 | HE9: =HD9*HB9 -> 0 | HF9: 0.3 | HG9: =HF9*$HE$19 -> 45.90282866 | HH9: =HB9-HE9+HG9 -> 103.8719346 | HI9: =HC9 -> G | HJ9: =_xlfn.RANK.AVG(HH9,$HH$9:$HH$18,1) -> 1 | HK9: The initial tax % values are
BA10: Click on cells in column BB below to see how productivity is determined. | DA10: Some people produce more and others less (column DB), but they all get the same income (column DC. | FA10: Click on an Initial cell in FB16:FB25 to see the formula -- the Initial distribution is from Screen 2, Output with Social Cooperation. | HA10: 2 | HB10: 91.96628952 | HC10: E | HD10: 0 | HE10: 0 | HF10: 0.25 | HG10: 38.25235722 | HH10: 130.2186467 | HI10: E | HJ10: =_xlfn.RANK.AVG(HH10,$HH$9:$HH$18,1) -> 2 | HK10: "realistic" in that lower income | JA10: Let's suppose that when taxes are applied (in cells HD9:HD18), effort falls by the tax percentage amount. Click in cells JE14:JE23 to see the formulas.
A11: Each person's output is determined by chance (both genetic and environmental). | DA11: We could do this by simply collecting all the output the 10 people made and then giving them back each 1/10 of the total. | FA11: Column FA shows the ranking of each value, where 1 is the poorest and 10 is the richest person. | HA11: 3 | HB11: 116.9137228 | HC11: B | HD11: 0 | HE11: 0 | HF11: 0.2 | HG11: 30.60188577 | HH11: 147.5156086 | HI11: B | HJ11: 8 | HK11: people pay less tax, but it is NOT true
A12: Click on a few cells in column B below to see the formulas and press F9 a few times. | BA12: Press F9 a few times and notice how much more output there is with social cooperation (cell BB26) than noncooperation (cell BE26) | FA12: ="The richest person gets about "&ROUND(MAX(FB16:FB25)/MIN(FB16:FB25),0)&" times what the poorest person gets. " -> The richest person gets about 3 times what the poorest person gets. | FH12: Press F9 and notice how the number in the sentence bounces. How does this spreadsheet do that? Click on cell FA12 to see the formula. | HA12: 4 | HB12: 121.8130674 | HC12: I | HD12: 0 | HE12: 0 | HF12: 0.15 | HG12: 22.95141433 | HH12: 144.7644818 | HI12: I | HJ12: 7 | HK12: that only lower half get transfers -- | JB12: Initial | JC12: Initial | JE12: After-tax | JF12: After E
B13: 1 | C13: Effort | BB13: =Effort -> 1 | BC13: Effort (this parameter can be changed, but assume "full, max effort" for now) | DA13: Press F9 a few times | DC13: Click on cells in the range DC16:DC25 to see the formula for the Egalitarian distribution. | FA13: The three charts show how we can plot sorted incomes, then cumulate (add) them, and finally, create the Lorenz Curve which leads to the Gini Coefficient -- a popular way to measure inequality. | HA13: 5 | HB13: 125.0557766 | HC13: D | HD13: 0 | HE13: 0 | HF13: 0.1 | HG13: 15.30094289 | HH13: 140.3567194 | HI13: D | HJ13: 4 | HK13: almost everyone gets transfers. | JA13: Person | JB13: Effort | JC13: Output | JD13: Tax % on Initial | JE13: Effort | JF13: Output
B14: Independent | BB14: Social Cooperation | DB14: =BB14 -> Social Cooperation | DC14: Egalitarian | FB14: =AVERAGE(FB16:FB25) -> 138.7827728 | FC14: avg income | HA14: 6 | HB14: 159.8267266 | HC14: J | HD14: 0.1 | HE14: 15.98267266 | HF14: 0 | HG14: 0 | HH14: 143.8440539 | HI14: J | HJ14: 6 | JA14: A | JB14: 1 | JC14: =BB16 -> 167.0632452 | JD14: =VLOOKUP(JA14,$HC$9:$HD$18,2,FALSE) -> 0.15 | JE14: =JB14-JD14 -> 0.85 | JF14: =JC14*JE14 -> 142.0037585 | JG14: Click a cell in column JD to see that a formula is being used to lookup the tax rate for each person (based on the previous screen -- you can scroll left to see it if you wish).
A15: Person | B15: Output | BA15: Person | BB15: Output | DA15: Person | DB15: =BB15 -> Output | DC15: Distribution | FA15: Rank | FB15: Initial | FC15: Person | HA15: 7 | HB15: 165.7708914 | HC15: H | HD15: 0.1 | HE15: 16.57708914 | HF15: 0 | HG15: 0 | HH15: 149.1938023 | HI15: H | HJ15: 9 | JA15: B | JB15: 1 | JC15: 116.9137228 | JD15: 0 | JE15: =JB15-JD15 -> 1 | JF15: 116.9137228
A16: A | B16: =RAND()*I*Effort -> 8.353162262 | C16: Excel's RAND() function generates a random number that is uniformly distributed on [0,1], so I=10 means we are equally likely to get numbers anywhere from 0 to 10, with an average of 5. | BA16: A | BB16: =B16*S*$BB$13 -> 167.0632452 | BC16: Display rounded for viewing | BF16: 5) Why does social cooperation create the problem of distributive justice? | DA16: A | DB16: 167.0632452 | DC16: =$BB$26/10 -> 138.7827728 | DE16: 6) Redistributing our way to the Egalitarian distribution might cause a problem. | FA16: =_xlfn.RANK.AVG(FB16,$FB$16:$FB$25,1) -> 8 | FB16: =BB16 -> 167.0632452 | FC16: =BA16 -> A | HA16: 8 | HB16: 167.0632452 | HC16: A | HD16: 0.15 | HE16: 25.05948679 | HF16: 0 | HG16: 0 | HH16: 142.0037585 | HI16: A | HJ16: 5 | JA16: C | JB16: 1 | JC16: 191.0039972 | JD16: 0.3 | JE16: 0.7 | JF16: 133.7027981
A17: B | B17: 5.84568614 | C17: These numbers represent the output produced by each person and the income each person gets -- income and output is the same thing. | BA17: B | BB17: 116.9137228 | DA17: B | DB17: 116.9137228 | DC17: 138.7827728 | DE17: Describe the problem as specifically and concretely as you can. | FA17: 3 | FB17: 116.9137228 | FC17: =BA17 -> B | HA17: 9 | HB17: 190.4449056 | HC17: F | HD17: 0.2 | HE17: 38.08898111 | HF17: 0 | HG17: 0 | HH17: 152.3559244 | HI17: F | HJ17: 10 | JA17: D | JB17: 1 | JC17: 125.0557766 | JD17: 0 | JE17: 1 | JF17: 125.0557766
A18: C | B18: 9.550199861 | C18: The numbers bounce because there is luck involved in production, like how much rain if you are a farmer. | BA18: C | BB18: 191.0039972 | DA18: C | DB18: 191.0039972 | DC18: 138.7827728 | FA18: 10 | FB18: 191.0039972 | FC18: C | HA18: 10 | HB18: 191.0039972 | HC18: C | HD18: 0.3 | HE18: 57.30119917 | HF18: 0 | HG18: 0 | HH18: 133.7027981 | HI18: C | HJ18: 3 | HK18: Click Reset TT if you change any | JA18: E | JB18: 1 | JC18: 91.96628952 | JD18: 0 | JE18: 1 | JF18: 91.96628952
A19: D | B19: 6.252788828 | D19: 1) Enter a formula in the cell below to determine how much the richest person of these 10 people made: | BA19: D | BB19: 125.0557766 | DA19: D | DB19: 125.0557766 | DC19: 138.7827728 | FA19: 5 | FB19: 125.0557766 | FC19: D | HB19: =SUM(HB9:HB18) -> 1387.827728 | HE19: =SUM(HE9:HE18) -> 153.0094289 | HG19: =SUM(HG9:HG18) -> 153.0094289 | HH19: =SUM(HH9:HH18) -> 1387.827728 | HK19: tax-transfer % values before continuing. | JA19: F | JB19: 1 | JC19: 190.4449056 | JD19: 0.2 | JE19: 0.8 | JF19: 152.3559244
A20: E | B20: 4.598314476 | BA20: E | BB20: 91.96628952 | DA20: E | DB20: 91.96628952 | DC20: 138.7827728 | FA20: 2 | FB20: 91.96628952 | FC20: E | FN20: Press F9 repeatedly -- look at the display and make connections! | JA20: G | JB20: 1 | JC20: 57.96910592 | JD20: 0 | JE20: 1 | JF20: 57.96910592
A21: F | B21: 9.522245278 | BA21: F | BB21: 190.4449056 | DA21: F | DB21: 190.4449056 | DC21: 138.7827728 | FA21: 9 | FB21: 190.4449056 | FC21: F | FN21: The Gini coefficient (under the chart) is small when the blue curve is close to the diagonal red line, but here's a key question: | HA21: The charts show how redistributing from rich to poor evens out the income distribution and brings the Lorenz Curve closer to the red line of equality. | JA21: H | JB21: 1 | JC21: 165.7708914 | JD21: 0.1 | JE21: 0.9 | JF21: 149.1938023
A22: G | B22: 2.898455296 | D22: 2) Press F9 a few times, if everyone's I = 10, then why does the amount and identity of the richest person change when you press F9? | BA22: G | BB22: 57.96910592 | DA22: G | DB22: 57.96910592 | DC22: 138.7827728 | FA22: 1 | FB22: 57.96910592 | FC22: G | FN22: 8) What controls the position and shape of the blue curve, called the Lorenz Curve? | JA22: I | JB22: 1 | JC22: =BB24 -> 121.8130674 | JD22: =VLOOKUP(JA22,$HC$9:$HD$18,2,FALSE) -> 0 | JE22: =JB22-JD22 -> 1 | JF22: 121.8130674
A23: H | B23: 8.288544571 | BA23: H | BB23: 165.7708914 | DA23: H | DB23: 165.7708914 | DC23: 138.7827728 | FA23: 7 | FB23: 165.7708914 | FC23: H | HB23: =AVERAGE(HB25:HB34) -> 138.7827728 | HC23: avg income | HM23: 9) What do the blue and green Lorenz Curves represent? | JA23: J | JB23: 1 | JC23: =BB25 -> 159.8267266 | JD23: 0.1 | JE23: 0.9 | JF23: 143.8440539 | JG23: Press F9 a few times to see the effect of the decrease in effort on After E output
A24: I | B24: 6.090653372 | BA24: I | BB24: 121.8130674 | DA24: I | DB24: 121.8130674 | DC24: 138.7827728 | FA24: 4 | FB24: 121.8130674 | FC24: I | HA24: Rank | HB24: After TT | HC24: Person | JC24: =SUM(JC14:JC23) -> 1387.827728 | JF24: =SUM(JF14:JF23) -> 1234.818299 | JG24: Output falls in JF24 compared to JC24 because effort falls because of taxes on initial output.
A25: J | B25: 7.99133633 | BA25: J | BB25: 159.8267266 | BE25: =B14 -> Independent | DA25: J | DB25: 159.8267266 | DC25: 138.7827728 | FA25: 6 | FB25: 159.8267266 | FC25: J | HA25: 1 | HB25: =INDEX($HH$9:$HH$18,MATCH(HA25,$HJ$9:$HJ$18,0)) -> 103.8719346 | HC25: =INDEX($HI$9:$HI$18,MATCH(HA25,$HJ$9:$HJ$18,0)) -> G | HM25: 10) The initial tax & transfer scheme (click Reset TT, if needed) is probably not going to be supported by the richest person. Why not? | JF25: =(JF24-JC24)/JC24 -> -0.1102510245 | JG25: The % decrease in after-tax output is usally around 12% to 15% (based on the Initial tax & transfer % values in the previous screen)
B26: =SUM(B16:B25) -> 69.39138641 | C26: total output | BB26: =SUM(BB16:BB25) -> 1387.827728 | BC26: total output | BE26: =B26 -> 69.39138641 | BF26: =C26 -> total output | DB26: 1387.827728 | DC26: =SUM(DC16:DC25) -> 1387.827728 | DD26: total output | FB26: =SUM(FB16:FB25) -> 1387.827728 | FC26: total output | FG26: The number on the last bar is rounded total income. | FK26: =gini(FF34:FF43) -> 0.1660189029 | FL26: Gini | HA26: 2 | HB26: 130.2186467 | HC26: E
HA27: 3 | HB27: 133.7027981 | HC27: C | HM27: 11) We are not done with our model. Why not? What do we have to do next? | JA27: After taxing, we can compare the decrease in after-tax output from diminished effort in the two charts (scroll down):
B28: These output values could be multiplied by prices to get measures of output and income in currency units (like dollars or euros), but we'll keep it simple and just leave them alone. | FE28: The Lorenz Curve plots the cumulative share of income (y) given the fraction of the population (x). | HA28: 4 | HB28: 140.3567194 | HC28: D | JD28: =AVERAGE(JD30:JD39) -> 123.4818299 | JE28: avg income | JI28: =AVERAGE(JI30:JI39) -> 123.4818299 | JJ28: avg income
B29: You can certainly think of them as output (GDP) and income in currency units if you wish. | FE29: The x axis sorts all of the people from lowest income (left) to highest income (right). | HA29: 5 | HB29: 142.0037585 | HC29: A | JC29: Rank | JD29: After E Output | JE29: Person | JH29: Rank | JI29: After E Output | JJ29: Person
FE30: The Lorenz Curve tells us the percentage of total income for each fraction of the population. | HA30: 6 | HB30: 143.8440539 | HC30: J | JB30: This is sorted | JC30: =_xlfn.RANK.AVG(JF14,$JF$14:$JF$23,1) -> 7 | JD30: =JF14 -> 142.0037585 | JE30: A | JG30: This is sorted | JH30: 1 | JI30: =VLOOKUP(JH30,$JC$30:$JD$39,2,FALSE) -> 57.96910592 | JJ30: =VLOOKUP(JH30,$JC$30:$JE$39,3,FALSE) -> G
FE31: ="We can say that the bottom 20% of the population gets "&ROUND(FH35*100,2)&" percent of all income (as shown by the box marker on the chart)." -> We can say that the bottom 20% of the population gets 10.8 percent of all income (as shown by the box marker on the chart). | FN31: Press F9 to see a repeat of the concatenation operator, &, strategy to display a dynamic number. | HA31: 7 | HB31: 144.7644818 | HC31: I | JB31: by person. | JC31: 3 | JD31: 116.9137228 | JE31: B | JG31: by income. | JH31: 2 | JI31: =VLOOKUP(JH31,$JC$30:$JD$39,2,FALSE) -> 91.96628952 | JJ31: =VLOOKUP(JH31,$JC$30:$JE$39,3,FALSE) -> E
FE32: Fraction of Pop | FF32: Inc at Rank | FG32: Cum Inc | FH32: Cum Share | FI32: Trapezoid area | HA32: 8 | HB32: 147.5156086 | HC32: B | JC32: 6 | JD32: 133.7027981 | JE32: C | JH32: 3 | JI32: 116.9137228 | JJ32: B
FE33: 0 | FF33: 0 | FG33: =FF33 -> 0 | FH33: 0 | HA33: 9 | HB33: 149.1938023 | HC33: H | HE33: Press F9 repeatedly. | HK33: Gini | JC33: 5 | JD33: 125.0557766 | JE33: D | JH33: 4 | JI33: 121.8130674 | JJ33: I
FE34: 0.1 | FF34: =HB9 -> 57.96910592 | FG34: =FF34+FG33 -> 57.96910592 | FH34: =FG34/$FG$43 -> 0.04176966978 | FI34: =(FH34+FH33)/2*0.1 -> 0.002088483489 | FJ34: These are the areas under the | HA34: 10 | HB34: 152.3559244 | HC34: F | HE34: Notice how the green bars are more level on the leftmost chart; | HJ34: Initial | HK34: =FK26 -> 0.1660189029 | HP34: Please be sure to click Reset (near cell HK 16) so you are working with the initial tax and transfer % values before you move on. | JC34: 2 | JD34: 91.96628952 | JE34: E | JH34: 5 | JI34: 125.0557766 | JJ34: D
FE35: 0.2 | FF35: 91.96628952 | FG35: =FF35+FG34 -> 149.9353954 | FH35: =FG35/$FG$43 -> 0.1080360281 | FI35: =(FH35+FH34)/2*0.1 -> 0.007490284893 | FJ35: blue Lorenz Curve in increments of 0.1. | HB35: =SUM(HB25:HB34) -> 1387.827728 | HC35: total output | HE35: there is less curvature in the green bars in the middle chart; and | HJ35: After TT | HK35: =HJ55 -> 0.04707425997 | HL35: Great result after redistribution! | JC35: 10 | JD35: 152.3559244 | JE35: F | JH35: 6 | JI35: 133.7027981 | JJ35: C
FE36: 0.3 | FF36: 116.9137228 | FG36: 266.8491182 | FH36: 0.1922782726 | FI36: 0.01501571503 | HE36: the green Lorenz curve is closer to the red diagonal, making the Gini fall. | HJ36: %DGini | HK36: =(HK35-HK34)/HK34 -> -0.716452409 | HL36: Inequality falls by a lot! | JC36: 1 | JD36: 57.96910592 | JE36: G | JH36: 7 | JI36: 142.0037585 | JJ36: A
FE37: 0.4 | FF37: 121.8130674 | FG37: 388.6621857 | FH37: 0.2800507424 | FI37: 0.02361645075 | FJ37: We add them up to get the total area under | HL37: Press F9 repeatedly. | JC37: 9 | JD37: 149.1938023 | JE37: H | JH37: 8 | JI37: 143.8440539 | JJ37: J
FE38: 0.5 | FF38: 125.0557766 | FG38: 513.7179622 | FH38: 0.370159748 | FI38: 0.03251052452 | FJ38: the blue Lorenz Curve as computed below. | JC38: 4 | JD38: 121.8130674 | JE38: I | JH38: 9 | JI38: 149.1938023 | JJ38: H
FE39: 0.6 | FF39: 159.8267266 | FG39: 673.5446888 | FH39: 0.48532298 | FI39: 0.0427741364 | HF39: Data for After TT Lorenz Curve | JC39: 8 | JD39: 143.8440539 | JE39: J | JH39: 10 | JI39: 152.3559244 | JJ39: F
FE40: 0.7 | FF40: 165.7708914 | FG40: 839.3155803 | FH40: 0.6047692831 | FI40: 0.05450461315 | FJ40: Display rounded for viewing. | HF40: Fraction of Pop | HG40: Inc at Rank | HH40: Cum Inc | HI40: Cum Share | HJ40: Trapezoid area | JD40: =SUM(JD30:JD39) -> 1234.818299 | JE40: total output | JI40: =SUM(JI30:JI39) -> 1234.818299 | JJ40: total output
FE41: 0.8 | FF41: 167.0632452 | FG41: 1006.378826 | FH41: 0.7251467924 | FI41: 0.06649580377 | HF41: 0 | HG41: 0 | HH41: =HG41 -> 0 | HI41: 0
FE42: 0.9 | FF42: 190.4449056 | FG42: 1196.823731 | FH42: 0.8623719693 | FI42: 0.07937593808 | HF42: 0.1 | HG42: =HB25 -> 103.8719346 | HH42: =HG42+HH41 -> 103.8719346 | HI42: =HH42/$HH$51 -> 0.07484497712 | HJ42: =(HI42+HI41)/2*0.1 -> 0.003742248856 | JA42: These two graphs (and the Ginis below them) show that After E (after taxes, lower effort), output produced falls for those who are taxed (so total output falls):
FE43: 1 | FF43: 191.0039972 | FG43: 1387.827728 | FH43: 1 | FI43: 0.09311859846 | HF43: 0.2 | HG43: 130.2186467 | HH43: =HG43+HH42 -> 234.0905813 | HI43: =HH43/$HH$51 -> 0.1686740916 | HJ43: =(HI43+HI42)/2*0.1 -> 0.01217595343
FI44: =SUM(FI34:FI43) -> 0.4169905486 | FJ44: B: sum trapezoid areas, area below the blue Lorenz Curve | HF44: 0.3 | HG44: 133.7027981 | HH44: 367.7933794 | HI44: 0.2650137131 | HJ44: =(HI44+HI43)/2*0.1 -> 0.02168439023
FI45: =0.5-FI44 -> 0.08300945144 | FJ45: A: area between red diagonal and blue Lorenz Curve | HF45: 0.4 | HG45: 140.3567194 | HH45: 508.1500988 | HI45: 0.3661478211 | HJ45: 0.03155807671
FI46: =FI45/(FI44+FI45) -> 0.1660189029 | FJ46: Gini computed by A/(A+B) | HF46: 0.5 | HG46: 142.0037585 | HH46: 650.1538573 | HI46: 0.468468704 | HJ46: 0.04173082626 | JI46: Press F9 a few times to help you answer Q12.
FI47: =FK26 -> 0.1660189029 | FJ47: Gini computed by GINI user-defined function in this Excel workbook | HF47: 0.6 | HG47: 143.8440539 | HH47: 793.9979112 | HI47: 0.5721156128 | HJ47: 0.05202921584
FJ48: The Gini ranges from 0 (perfect equality) to 1 (1 person has all income). | HF48: 0.7 | HG48: 144.7644818 | HH48: 938.762393 | HI48: 0.6764257363 | HJ48: 0.06242706746
HF49: 0.8 | HG49: 147.5156086 | HH49: 1086.278002 | HI49: 0.7827181857 | HJ49: 0.0729571961
HF50: 0.9 | HG50: 149.1938023 | HH50: 1235.471804 | HI50: 0.8902198585 | HJ50: 0.08364690221 | JI50: 12) Why does the decrease in effort after taxes reduce the Gini coefficient?
FI51: So the way the Gini works is you sort the incomes, then you cumulate (as in the chart to the left). | HF51: 1 | HG51: 152.3559244 | HH51: 1387.827728 | HI51: 1 | HJ51: 0.09451099292
FI52: then you create the Lorenz Curve as the percentage of cumulated income, and, finally, | HJ52: =SUM(HJ42:HJ51) -> 0.47646287 | HK52: B: sum trapezoid areas, area below the Lorenz Curve
FI53: you compute how far away the Lorenz Curve is from perfect equality (the diagonal line). | HJ53: =0.5-HJ52 -> 0.02353712998 | HK53: A: area between red diagonal and green Lorenz Curve
HJ54: =HJ53/0.5 -> 0.04707425997 | HK54: Gini computed by A/(A+B) | JG54: Gini | JH54: Total Output
HJ55: =gini(HG42:HG51) -> 0.04707425997 | HK55: Gini computed by GINI user-defined function in this Excel workbook | JF55: Initial | JG55: =FK26 -> 0.1660189029 | JH55: =JC24 -> 1387.827728
JF56: After E | JG56: =gini(JI30:JI39) -> 0.1177456397 | JH56: =JF24 -> 1234.818299
JF57: %D | JG57: =(JG56-JG55)/JG55 -> -0.2907696792 | JH57: =(JH56-JH55)/JH55 -> -0.1102510245
JD58: Data for After E (Decrease in Effort from taxes)
JD59: Fraction of Pop | JE59: Inc at Rank | JF59: Cum Share | JG59: Trapezoid area
JD60: 0 | JE60: 0 | JF60: 0
JD61: 0.1 | JE61: =JI30 -> 57.96910592 | JF61: =cumshare($JE$61:$JE$70,JE61) -> 0.0469454542 | JG61: =(JF61+JF60)/2*0.1 -> 0.00234727271
JD62: 0.2 | JE62: 91.96628952 | JF62: 0.121423043 | JG62: 0.008418424858
JD63: 0.3 | JE63: 116.9137228 | JF63: 0.216103955 | JG63: 0.0168763499
JD64: 0.4 | JE64: 121.8130674 | JF64: 0.3147525315 | JG64: 0.02654282433
JD65: 0.5 | JE65: 125.0557766 | JF65: 0.4160271697 | JG65: 0.03653898506
JD66: 0.6 | JE66: 133.7027981 | JF66: 0.5243044751 | JG66: 0.04701658224
JD67: 0.7 | JE67: 142.0037585 | JF67: 0.6393041949 | JG67: 0.0581804335
JD68: 0.8 | JE68: 143.8440539 | JF68: 0.7557942518 | JG68: 0.06975492233
JD69: 0.9 | JE69: 149.1938023 | JF69: 0.8766167261 | JG69: 0.08162054889
JD70: 1 | JE70: 152.3559244 | JF70: 1 | JG70: 0.09383083631
JG71: =SUM(JG61:JG70) -> 0.4411271801 | JH71: B: sum trapezoid areas, area below the orange Lorenz Curve
JG72: =0.5-JG71 -> 0.05887281987 | JH72: A: area between red diagonal and orange Lorenz Curve
JG73: =JG72/0.5 -> 0.1177456397 | JH73: by A/(A+B)
JG74: =gini(JE61:JE70) -> 0.1177456397 | JH74: by GINI function
JA76: We have reached the last step -- we need to redistribute the (smaller) output and compare it to the Initial distribution.
JJ78: Click in cells JJ81:JJ90 to see that taxes (-) and transfers (+) are applied to After-tax Output, not Initial Output.
JB79: =AVERAGE(JB81:JB90) -> 138.7827728 | JC79: avg income | JJ79: =AVERAGE(JJ81:JJ90) -> 123.4818299 | JK79: avg income
JA80: Rank | JB80: Initial Output | JC80: Person | JD80: Initial Tax % | JE80: After-tax Effort | JF80: After E Output | JG80: Tax | JH80: Transfer % Tax | JI80: Transfer | JJ80: After TET | JK80: Person | JL80: Rank
JA81: 1 | JB81: =VLOOKUP(JA81,$FA$16:$FB$25,2,FALSE) -> 57.96910592 | JC81: =VLOOKUP(JA81,$FA$16:$FC$25,3,FALSE) -> G | JD81: 0 | JE81: =100%-JD81 -> 1 | JF81: =JE81*JB81 -> 57.96910592 | JG81: =JD81*JF81 -> 0 | JH81: 0.3 | JI81: =JH81*$JG$91 -> 36.35591211 | JJ81: =JF81-JG81+JI81 -> 94.32501803 | JK81: =JC81 -> G | JL81: =_xlfn.RANK.AVG(JJ81,$JJ$81:$JJ$90,1) -> 2
JA82: 2 | JB82: 91.96628952 | JC82: E | JD82: 0 | JE82: =100%-JD82 -> 1 | JF82: 91.96628952 | JG82: =JD82*JF82 -> 0 | JH82: 0.25 | JI82: 30.29659342 | JJ82: 122.2628829 | JK82: E | JL82: =_xlfn.RANK.AVG(JJ82,$JJ$81:$JJ$90,1) -> 5
JA83: 3 | JB83: 116.9137228 | JC83: B | JD83: 0 | JE83: 1 | JF83: 116.9137228 | JG83: 0 | JH83: 0.2 | JI83: 24.23727474 | JJ83: 141.1509975 | JK83: B | JL83: 10
JA84: 4 | JB84: 121.8130674 | JC84: I | JD84: 0 | JE84: 1 | JF84: 121.8130674 | JG84: 0 | JH84: 0.15 | JI84: 18.17795605 | JJ84: 139.9910235 | JK84: I | JL84: 9
JA85: 5 | JB85: 125.0557766 | JC85: D | JD85: 0 | JE85: 1 | JF85: 125.0557766 | JG85: 0 | JH85: 0.1 | JI85: 12.11863737 | JJ85: 137.1744139 | JK85: D | JL85: 8
JA86: 6 | JB86: 159.8267266 | JC86: J | JD86: 0.1 | JE86: 0.9 | JF86: 143.8440539 | JG86: 14.38440539 | JH86: 0 | JI86: 0 | JJ86: 129.4596486 | JK86: J | JL86: 6
JA87: 7 | JB87: 165.7708914 | JC87: H | JD87: 0.1 | JE87: 0.9 | JF87: 149.1938023 | JG87: 14.91938023 | JH87: 0 | JI87: 0 | JJ87: 134.2744221 | JK87: H | JL87: 7
JA88: 8 | JB88: 167.0632452 | JC88: A | JD88: 0.15 | JE88: 0.85 | JF88: 142.0037585 | JG88: 21.30056377 | JH88: 0 | JI88: 0 | JJ88: 120.7031947 | JK88: A | JL88: 3
JA89: 9 | JB89: 190.4449056 | JC89: F | JD89: 0.2 | JE89: 0.8 | JF89: 152.3559244 | JG89: 30.47118489 | JH89: 0 | JI89: 0 | JJ89: 121.8847396 | JK89: F | JL89: 4
JA90: 10 | JB90: 191.0039972 | JC90: C | JD90: 0.3 | JE90: 0.7 | JF90: 133.7027981 | JG90: 40.11083942 | JH90: 0 | JI90: 0 | JJ90: 93.59195864 | JK90: C | JL90: 1 | JM90: Press F9 a few times and look carefully at row 90.
JB91: =SUM(JB81:JB90) -> 1387.827728 | JF91: =SUM(JF81:JF90) -> 1234.818299 | JG91: =SUM(JG81:JG90) -> 121.1863737 | JI91: =SUM(JI81:JI90) -> 121.1863737 | JJ91: =SUM(JJ81:JJ90) -> 1234.818299 | JM91: Lesson: The highest income person in initial (cell JB90) can fall quite a bit (cell JJ90) because
JM92: 1) They are taxed at 30% and
JM93: 2) They reduce their effort to 70%.
JB95: =AVERAGE(JB97:JB106) -> 123.4818299 | JC95: avg income
JA96: Rank | JB96: After TET | JC96: Person | JN96: The Final Question! This is the end!
JA97: 1 | JB97: =INDEX($JJ$81:$JJ$90,MATCH(JA97,$JL$81:$JL$90,0)) -> 93.59195864 | JC97: =INDEX($HI$9:$HI$18,MATCH(JA97,$HJ$9:$HJ$18,0)) -> G | JN97: 13) So, what's the trade-off, according to this model? To get lower inequality, what do we have to give up? Why?
JA98: 2 | JB98: =INDEX($JJ$81:$JJ$90,MATCH(JA98,$JL$81:$JL$90,0)) -> 94.32501803 | JC98: E
JA99: 3 | JB99: 120.7031947 | JC99: C
JA100: 4 | JB100: 121.8847396 | JC100: D
JA101: 5 | JB101: 122.2628829 | JC101: A
JA102: 6 | JB102: 129.4596486 | JC102: J
JA103: 7 | JB103: 134.2744221 | JC103: I
JA104: 8 | JB104: 137.1744139 | JC104: B
JA105: 9 | JB105: 139.9910235 | JC105: H | JK105: Gini | JL105: Total Output
JA106: 10 | JB106: =INDEX($JJ$81:$JJ$90,MATCH(JA106,$JL$81:$JL$90,0)) -> 141.1509975 | JC106: F | JJ106: Initial | JK106: =FK26 -> 0.1660189029 | JL106: =JC24 -> 1387.827728
JB107: =SUM(JB97:JB106) -> 1234.818299 | JC107: total output | JJ107: After TET | JK107: =JI126 -> 0.07081327659 | JL107: =JF24 -> 1234.818299
JJ108: %D | JK108: =(JK107-JK106)/JK106 -> -0.5734625674 | JL108: =(JL107-JL106)/JL106 -> -0.1102510245
JK109: Inequality falls by a lot just like before, but notice that output has fallen. This is different from before.
JE110: Data for After TET Lorenz Curve | JK110: Press F9 repeatedly.
JE111: Fraction of Pop | JF111: Inc at Rank | JG111: Cum Inc | JH111: Cum Share | JI111: Trapezoid area | JK111: So, the key takeaway:
JE112: 0 | JF112: 0 | JG112: =JF112 -> 0 | JH112: 0 | JL112: Social cooperation leads to a massive increase in output.
JE113: 0.1 | JF113: =JB97 -> 93.59195864 | JG113: =JF113+JG112 -> 93.59195864 | JH113: =JG113/$JG$122 -> 0.07579411375 | JI113: =(JH113+JH112)/2*0.1 -> 0.003789705687 | JL113: Distributing the output is super complicated and affects productivity -- how and how much is the subject of great debate!
JE114: 0.2 | JF114: 94.32501803 | JG114: =JF114+JG113 -> 187.9169767 | JH114: =JG114/$JG$122 -> 0.1521818852 | JI114: =(JH114+JH113)/2*0.1 -> 0.01139879995
JE115: 0.3 | JF115: 120.7031947 | JG115: 308.6201714 | JH115: 0.249931647 | JI115: =(JH115+JH114)/2*0.1 -> 0.02010567661
JE116: 0.4 | JF116: 121.8847396 | JG116: 430.5049109 | JH116: 0.3486382661 | JI116: 0.02992849566
JE117: 0.5 | JF117: 122.2628829 | JG117: 552.7677938 | JH117: 0.4476511193 | JI117: 0.03981446927
JE118: 0.6 | JF118: 129.4596486 | JG118: 682.2274424 | JH118: 0.5524921705 | JI118: 0.05000716449
JE119: 0.7 | JF119: 134.2744221 | JG119: 816.5018645 | JH119: 0.6612323974 | JI119: 0.06068622839
JE120: 0.8 | JF120: 137.1744139 | JG120: 953.6762784 | JH120: 0.7723211414 | JI120: 0.07167767694
JE121: 0.9 | JF121: 139.9910235 | JG121: 1093.667302 | JH121: 0.8856908765 | JI121: 0.08290060089
JE122: 1 | JF122: 141.1509975 | JG122: 1234.818299 | JH122: 1 | JI122: 0.09428454382
JI123: =SUM(JI113:JI122) -> 0.4645933617 | JJ123: B: sum trapezoid areas, area below the Lorenz Curve
JI124: =0.5-JI123 -> 0.03540663829 | JJ124: A: area between red diagonal and purple Lorenz Curve
JI125: =JI124/0.5 -> 0.07081327659 | JJ125: Gini computed by A/(A+B)
JI126: =gini(JF113:JF122) -> 0.07081327659 | JJ126: Gini computed by GINI user-defined function in this Excel workbook
JA201: Below, we compare redistribution with no effort effect (After TT) and with a decrease in effort (After TET) to Initial:
JK213: Gini | JL213: Total Output
JA214: These graphs are confusing, so I left them out, but I decided not to delete them in case someone wanted to use them. | JJ214: Initial | JK214: =FK26 -> 0.1660189029 | JL214: =JC24 -> 1387.827728
JA215: After TT is not a viable option, but comparing it to After TET shows that they end up with similar Ginis. | JJ215: After TT | JK215: =HK35 -> 0.04707425997 | JL215: =JC24 -> 1387.827728
JJ216: After TET | JK216: =JI126 -> 0.07081327659 | JL216: =JF24 -> 1234.818299

Sheet SocialCooperationLOGNORM (hidden)
A1: 1: A Model of Social Cooperation | H1: 1: You are here | N1: This is a progress bar -- it updates as you work through the material. | BA1: 2: The Effects of Social Cooperation | BI1: 2: You are here | DA1: 3: Options for Distributing the Output | DJ1: 3: You are here | FA1: 4: Modeling the Feedback Mechanism | FM1: 4: You are here | HA1: 5: Modeling Redistribution | HM1: 5: You are here | JA1: 6: How Does Redistribution Affect Effort? | JM1: 6: You are here
FA2: Redistribution might lessen effort (and investment), so total output would shrink. | HA2: We continue building our model by redistributing the output: we can use the yellow backgrounded cells to tax people (presumably the rich) and give others transfers (presumably the poor). | JA2: We know output rises compared to independent, individual production (I) when we group together into a social unit (S).
A3: Read carefully and follow instructions, then answer the numbered questions in red, bold text. There are 13 questions in all. | BA3: If individuals associate and live in a society, they are much more productive. | DA3: Now that we have produced a lot of output with social cooperation, we have options for how to distribute it. | FA3: This is a key feedback mechanism and it is unclear how strong this effect is in the real world. | HA3: Play around a bit, changing values in the yellow-backgrounded cells, keeping an eye on the impacts on taxes, transfers, and the charts below. Press F9 a few times to see what is going on. | JA3: We also know effort (E) and randomness affect productivity.
A4: You can change parameter values in cells with yellow backgrounds (like B7 and B13 below). | BA4: Their individual productivity is multiplied by the social productivity parameter, S, so their individual output increases and SOCIETY'S GDP rockets. | DA4: When we make things we call it output; when we get some of the output, we call it income. | FA4: It might be that a little redistribution doesn't do much to effort, but a lot of redistribution produces a big decrease in effort. | HA4: Read the table from left to right, following this flow chart of the process: | JA4: Our final version of our toy model will incorporate a feedback mechanism so that taxation loops back and affects effort, like this:
DA5: One way to distribute the output would be to give each person the output they produced. | FA5: The effect probably varies across societies, stronger in some and weaker in others. Social cohesion and group identity help determine the effect of redistribution on effort.
A6: Each person has an individual and social productivity parameter, below is just the individual productivity, which Nozick says is S for "acting separately", but we will use I for INDIVIDUAL | BA6: 20 | BB6: social productivity, S | BD6: 3) What letter did Nozick use for this? | FA6: Suppose, for example, that a society experienced a large influx of immigrants. Perhaps new government programs are proposed to help the newcomers paid for with higher taxes on well-off, established locals.
B7: 10 | C7: individual productivty, I | DA7: Another way would be to divide it equally. | FC7: 7) Would you then expect a large or small decrease in effort from an increase in redistribution? Why? | HB7: =AVERAGE(HB9:HB18) -> 113.0783863 | HC7: avg income | HH7: =AVERAGE(HH9:HH18) -> 113.0783863 | HI7: avg income
A8: The variable "I" could also stand for ISOLATED or INDEPENDENT. | BA8: 4) How much does productivity actually increase when humans cooperate and form societies? | DA8: IF dividing it equally had no effect on effort, below is the egalitarian income distribution we would get. | HA8: Rank | HB8: Initial | HC8: Person | HD8: Tax % | HE8: Tax | HF8: Transfer % | HG8: Transfer | HH8: After TT | HI8: Person | HJ8: Rank | JA8: In other words, effort no longer stays constant at 100%. This is an important extension of the model.
A9: Each person also gives a certain EFFORT (E), which we assume is 100% -- at first. We will change this later. | FA9: We begin our modeling of the feedback mechanism with an Initial distribution where each person receives what they produced (given their I and S parameters). | HA9: 1 | HB9: =VLOOKUP(HA9,$FA$16:$FB$25,2,FALSE) -> 14.92424512 | HC9: =VLOOKUP(HA9,$FA$16:$FC$25,3,FALSE) -> J | HD9: 0 | HE9: =HD9*HB9 -> 0 | HF9: 0.3 | HG9: =HF9*$HE$19 -> 66.10494779 | HH9: =HB9-HE9+HG9 -> 81.02919291 | HI9: =HC9 -> J | HJ9: =_xlfn.RANK.AVG(HH9,$HH$9:$HH$18,1) -> 5 | HK9: The initial tax % values are
BA10: Click on cells in column BB below to see how productivity is determined. | DA10: Some people produce more and others less (column DB), but they all get the same income (column DC. | FA10: Click on an Initial cell in FB16:FB25 to see the formula -- the Initial distribution is from Screen 2, Output with Social Cooperation. | HA10: 2 | HB10: 28.46361955 | HC10: D | HD10: 0 | HE10: 0 | HF10: 0.25 | HG10: 55.08745649 | HH10: 83.55107604 | HI10: D | HJ10: =_xlfn.RANK.AVG(HH10,$HH$9:$HH$18,1) -> 6 | HK10: "realistic" in that lower income | JA10: Let's suppose that when taxes are applied (in cells HD9:HD18), effort falls by the tax percentage amount. Click in cells JE14:JE23 to see the formulas.
A11: Each person's output is determined by chance (both genetic and environmental). | DA11: We could do this by simply collecting all the output the 10 people made and then giving them back each 1/10 of the total. | FA11: Column FA shows the ranking of each value, where 1 is the poorest and 10 is the richest person. | HA11: 3 | HB11: 44.89187307 | HC11: G | HD11: 0 | HE11: 0 | HF11: 0.2 | HG11: 44.06996519 | HH11: 88.96183826 | HI11: G | HJ11: 8 | HK11: people pay less tax, but it is NOT true
A12: Click on a few cells in column B below to see the formulas and press F9 a few times. | BA12: Press F9 a few times and notice how much more output there is with social cooperation (cell BB26) than noncooperation (cell BE26) | FA12: ="The richest person gets about "&ROUND(MAX(FB16:FB25)/MIN(FB16:FB25),0)&" times what the poorest person gets. " -> The richest person gets about 32 times what the poorest person gets. | FH12: Press F9 and notice how the number in the sentence bounces. How does this spreadsheet do that? Click on cell FA12 to see the formula. | HA12: 4 | HB12: 45.88231751 | HC12: I | HD12: 0 | HE12: 0 | HF12: 0.15 | HG12: 33.05247389 | HH12: 78.9347914 | HI12: I | HJ12: 4 | HK12: that only lower half get transfers -- | JB12: Initial | JC12: Initial | JE12: After-tax | JF12: After E
B13: 1 | C13: Effort | BB13: =Effort -> 1 | BC13: Effort (this parameter can be changed, but assume "full, max effort" for now) | DA13: Press F9 a few times | DC13: Click on cells in the range DC16:DC25 to see the formula for the Egalitarian distribution. | FA13: The three charts show how we can plot sorted incomes, then cumulate (add) them, and finally, create the Lorenz Curve which leads to the Gini Coefficient -- a popular way to measure inequality. | HA13: 5 | HB13: 47.92368752 | HC13: C | HD13: 0 | HE13: 0 | HF13: 0.1 | HG13: 22.0349826 | HH13: 69.95867011 | HI13: C | HJ13: 3 | HK13: almost everyone gets transfers. | JA13: Person | JB13: Effort | JC13: Output | JD13: Tax % on Initial | JE13: Effort | JF13: Output
B14: Independent | BB14: Social Cooperation | DB14: =BB14 -> Social Cooperation | DC14: Egalitarian | FB14: =AVERAGE(FB16:FB25) -> 113.0783863 | FC14: avg income | HA14: 6 | HB14: 58.07575837 | HC14: E | HD14: 0.1 | HE14: 5.807575837 | HF14: 0 | HG14: 0 | HH14: 52.26818253 | HI14: E | HJ14: 1 | JA14: A | JB14: 1 | JC14: =BB16 -> 101.1155713 | JD14: =VLOOKUP(JA14,$HC$9:$HD$18,2,FALSE) -> 0.15 | JE14: =JB14-JD14 -> 0.85 | JF14: =JC14*JE14 -> 85.94823559 | JG14: Click a cell in column JD to see that a formula is being used to lookup the tax rate for each person (based on the previous screen -- you can scroll left to see it if you wish).
A15: Person | B15: Output | BA15: Person | BB15: Output | DA15: Person | DB15: =BB15 -> Output | DC15: Distribution | FA15: Rank | FB15: Initial | FC15: Person | HA15: 7 | HB15: 69.43768705 | HC15: B | HD15: 0.1 | HE15: 6.943768705 | HF15: 0 | HG15: 0 | HH15: 62.49391835 | HI15: B | HJ15: 2 | JA15: B | JB15: 1 | JC15: 69.43768705 | JD15: 0.1 | JE15: =JB15-JD15 -> 0.9 | JF15: 62.49391835
A16: A | B16: =C31 -> 5.055778564 | C16: Excel's RAND() function generates a random number that is uniformly distributed on [0,1], so I=10 means we are equally likely to get numbers anywhere from 0 to 10, with an average of 5. | BA16: A | BB16: =B16*S*$BB$13 -> 101.1155713 | BC16: Display rounded for viewing | BF16: 5) Why does social cooperation create the problem of distributive justice? | DA16: A | DB16: 101.1155713 | DC16: =$BB$26/10 -> 113.0783863 | DE16: 6) Redistributing our way to the Egalitarian distribution might cause a problem. | FA16: =_xlfn.RANK.AVG(FB16,$FB$16:$FB$25,1) -> 8 | FB16: =BB16 -> 101.1155713 | FC16: =BA16 -> A | HA16: 8 | HB16: 101.1155713 | HC16: A | HD16: 0.15 | HE16: 15.16733569 | HF16: 0 | HG16: 0 | HH16: 85.94823559 | HI16: A | HJ16: 7 | JA16: C | JB16: 1 | JC16: 47.92368752 | JD16: 0 | JE16: 1 | JF16: 47.92368752
A17: B | B17: 3.471884353 | C17: These numbers represent the output produced by each person and the income each person gets -- income and output is the same thing. | BA17: B | BB17: 69.43768705 | DA17: B | DB17: 69.43768705 | DC17: 113.0783863 | DE17: Describe the problem as specifically and concretely as you can. | FA17: 7 | FB17: 69.43768705 | FC17: =BA17 -> B | HA17: 9 | HB17: 235.895854 | HC17: H | HD17: 0.2 | HE17: 47.1791708 | HF17: 0 | HG17: 0 | HH17: 188.7166832 | HI17: H | HJ17: 9 | JA17: D | JB17: 1 | JC17: 28.46361955 | JD17: 0 | JE17: 1 | JF17: 28.46361955
A18: C | B18: 2.396184376 | C18: The numbers bounce because there is luck involved in production, like how much rain if you are a farmer. | BA18: C | BB18: 47.92368752 | DA18: C | DB18: 47.92368752 | DC18: 113.0783863 | FA18: 5 | FB18: 47.92368752 | FC18: C | HA18: 10 | HB18: 484.1732497 | HC18: F | HD18: 0.3 | HE18: 145.2519749 | HF18: 0 | HG18: 0 | HH18: 338.9212748 | HI18: F | HJ18: 10 | HK18: Click Reset TT if you change any | JA18: E | JB18: 1 | JC18: 58.07575837 | JD18: 0.1 | JE18: 0.9 | JF18: 52.26818253
A19: D | B19: 1.423180978 | D19: 1) Enter a formula in the cell below to determine how much the richest person of these 10 people made: | BA19: D | BB19: 28.46361955 | DA19: D | DB19: 28.46361955 | DC19: 113.0783863 | FA19: 2 | FB19: 28.46361955 | FC19: D | HB19: =SUM(HB9:HB18) -> 1130.783863 | HE19: =SUM(HE9:HE18) -> 220.349826 | HG19: =SUM(HG9:HG18) -> 220.349826 | HH19: =SUM(HH9:HH18) -> 1130.783863 | HK19: tax-transfer % values before continuing. | JA19: F | JB19: 1 | JC19: 484.1732497 | JD19: 0.3 | JE19: 0.7 | JF19: 338.9212748
A20: E | B20: 2.903787918 | BA20: E | BB20: 58.07575837 | DA20: E | DB20: 58.07575837 | DC20: 113.0783863 | FA20: 6 | FB20: 58.07575837 | FC20: E | FN20: Press F9 repeatedly -- look at the display and make connections! | JA20: G | JB20: 1 | JC20: 44.89187307 | JD20: 0 | JE20: 1 | JF20: 44.89187307
A21: F | B21: 24.20866249 | BA21: F | BB21: 484.1732497 | DA21: F | DB21: 484.1732497 | DC21: 113.0783863 | FA21: 10 | FB21: 484.1732497 | FC21: F | FN21: The Gini coefficient (under the chart) is small when the blue curve is close to the diagonal red line, but here's a key question: | HA21: The charts show how redistributing from rich to poor evens out the income distribution and brings the Lorenz Curve closer to the red line of equality. | JA21: H | JB21: 1 | JC21: 235.895854 | JD21: 0.2 | JE21: 0.8 | JF21: 188.7166832
A22: G | B22: 2.244593653 | D22: 2) Press F9 a few times, if everyone's I = 10, then why does the amount and identity of the richest person change when you press F9? | BA22: G | BB22: 44.89187307 | DA22: G | DB22: 44.89187307 | DC22: 113.0783863 | FA22: 3 | FB22: 44.89187307 | FC22: G | FN22: 8) What controls the position and shape of the blue curve, called the Lorenz Curve? | JA22: I | JB22: 1 | JC22: =BB24 -> 45.88231751 | JD22: =VLOOKUP(JA22,$HC$9:$HD$18,2,FALSE) -> 0 | JE22: =JB22-JD22 -> 1 | JF22: 45.88231751
A23: H | B23: 11.7947927 | BA23: H | BB23: 235.895854 | DA23: H | DB23: 235.895854 | DC23: 113.0783863 | FA23: 9 | FB23: 235.895854 | FC23: H | HB23: =AVERAGE(HB25:HB34) -> 113.0783863 | HC23: avg income | HM23: 9) What do the blue and green Lorenz Curves represent? | JA23: J | JB23: 1 | JC23: =BB25 -> 14.92424512 | JD23: 0 | JE23: 1 | JF23: 14.92424512 | JG23: Press F9 a few times to see the effect of the decrease in effort on After E output
A24: I | B24: 2.294115875 | BA24: I | BB24: 45.88231751 | DA24: I | DB24: 45.88231751 | DC24: 113.0783863 | FA24: 4 | FB24: 45.88231751 | FC24: I | HA24: Rank | HB24: After TT | HC24: Person | JC24: =SUM(JC14:JC23) -> 1130.783863 | JF24: =SUM(JF14:JF23) -> 910.4340373 | JG24: Output falls in JF24 compared to JC24 because effort falls because of taxes on initial output.
A25: J | B25: 0.7462122559 | BA25: J | BB25: 14.92424512 | BE25: =B14 -> Independent | DA25: J | DB25: 14.92424512 | DC25: 113.0783863 | FA25: 1 | FB25: 14.92424512 | FC25: J | HA25: 1 | HB25: =INDEX($HH$9:$HH$18,MATCH(HA25,$HJ$9:$HJ$18,0)) -> 52.26818253 | HC25: =INDEX($HI$9:$HI$18,MATCH(HA25,$HJ$9:$HJ$18,0)) -> E | HM25: 10) The initial tax & transfer scheme (click Reset TT, if needed) is probably not going to be supported by the richest person. Why not? | JF25: =(JF24-JC24)/JC24 -> -0.1948646714 | JG25: The % decrease in after-tax output is usally around 12% to 15% (based on the Initial tax & transfer % values in the previous screen)
B26: =SUM(B16:B25) -> 56.53919316 | C26: total output | BB26: =SUM(BB16:BB25) -> 1130.783863 | BC26: total output | BE26: =B26 -> 56.53919316 | BF26: =C26 -> total output | DB26: 1130.783863 | DC26: =SUM(DC16:DC25) -> 1130.783863 | DD26: total output | FB26: =SUM(FB16:FB25) -> 1130.783863 | FC26: total output | FG26: The number on the last bar is rounded total income. | FK26: =gini(FF34:FF43) -> 0.5338954286 | FL26: Gini | HA26: 2 | HB26: 62.49391835 | HC26: B
HA27: 3 | HB27: 69.95867011 | HC27: C | HM27: 11) We are not done with our model. Why not? What do we have to do next? | JA27: After taxing, we can compare the decrease in after-tax output from diminished effort in the two charts (scroll down):
FE28: The Lorenz Curve plots the cumulative share of income (y) given the fraction of the population (x). | HA28: 4 | HB28: 78.9347914 | HC28: I | JD28: =AVERAGE(JD30:JD39) -> 91.04340373 | JE28: avg income | JI28: =AVERAGE(JI30:JI39) -> 91.04340373 | JJ28: avg income
A29: LOGNORMAL instead of RAND (UNIFORM) | FE29: The x axis sorts all of the people from lowest income (left) to highest income (right). | HA29: 5 | HB29: 81.02919291 | HC29: J | JC29: Rank | JD29: After E Output | JE29: Person | JH29: Rank | JI29: After E Output | JJ29: Person
C30: Income | FE30: The Lorenz Curve tells us the percentage of total income for each fraction of the population. | HA30: 6 | HB30: 83.55107604 | HC30: D | JB30: This is sorted | JC30: =_xlfn.RANK.AVG(JF14,$JF$14:$JF$23,1) -> 8 | JD30: =JF14 -> 85.94823559 | JE30: A | JG30: This is sorted | JH30: 1 | JI30: =VLOOKUP(JH30,$JC$30:$JD$39,2,FALSE) -> 14.92424512 | JJ30: =VLOOKUP(JH30,$JC$30:$JE$39,3,FALSE) -> J
A31: =_xlfn.LOGNORM.INV(RAND(),A32,A33) -> 1.58446853 | B31: log normal rng | C31: =_xlfn.LOGNORM.INV(RAND(),$A$32,$A$33) -> 5.055778564 | FE31: ="We can say that the bottom 20% of the population gets "&ROUND(FH35*100,2)&" percent of all income (as shown by the box marker on the chart)." -> We can say that the bottom 20% of the population gets 3.84 percent of all income (as shown by the box marker on the chart). | FN31: Press F9 to see a repeat of the concatenation operator, &, strategy to display a dynamic number. | HA31: 7 | HB31: 85.94823559 | HC31: A | JB31: by person. | JC31: 7 | JD31: 62.49391835 | JE31: B | JG31: by income. | JH31: 2 | JI31: =VLOOKUP(JH31,$JC$30:$JD$39,2,FALSE) -> 28.46361955 | JJ31: =VLOOKUP(JH31,$JC$30:$JE$39,3,FALSE) -> D
A32: 1 | B32: mu | C32: 3.471884353 | FE32: Fraction of Pop | FF32: Inc at Rank | FG32: Cum Inc | FH32: Cum Share | FI32: Trapezoid area | HA32: 8 | HB32: 88.96183826 | HC32: G | JC32: 5 | JD32: 47.92368752 | JE32: C | JH32: 3 | JI32: 44.89187307 | JJ32: G
A33: 1.1 | B33: sigma | C33: 2.396184376 | FE33: 0 | FF33: 0 | FG33: =FF33 -> 0 | FH33: 0 | HA33: 9 | HB33: 188.7166832 | HC33: H | HE33: Press F9 repeatedly. | HK33: Gini | JC33: 2 | JD33: 28.46361955 | JE33: D | JH33: 4 | JI33: 45.88231751 | JJ33: I
A34: =EXP(A32+A33^2/2) -> 4.977859603 | B34: mean | C34: 1.423180978 | FE34: 0.1 | FF34: =HB9 -> 14.92424512 | FG34: =FF34+FG33 -> 14.92424512 | FH34: =FG34/$FG$43 -> 0.01319814122 | FI34: =(FH34+FH33)/2*0.1 -> 0.0006599070611 | FJ34: These are the areas under the | HA34: 10 | HB34: 338.9212748 | HC34: F | HE34: Notice how the green bars are more level on the leftmost chart; | HJ34: Initial | HK34: =FK26 -> 0.5338954286 | HP34: Please be sure to click Reset (near cell HK 16) so you are working with the initial tax and transfer % values before you move on. | JC34: 6 | JD34: 52.26818253 | JE34: E | JH34: 5 | JI34: 47.92368752 | JJ34: C
A35: =SQRT((EXP(A33^2)-1)*EXP(2*A32+A33^2)) -> 7.636569854 | B35: SD | C35: 2.903787918 | FE35: 0.2 | FF35: 28.46361955 | FG35: =FF35+FG34 -> 43.38786467 | FH35: =FG35/$FG$43 -> 0.03836972394 | FI35: =(FH35+FH34)/2*0.1 -> 0.002578393258 | FJ35: blue Lorenz Curve in increments of 0.1. | HB35: =SUM(HB25:HB34) -> 1130.783863 | HC35: total output | HE35: there is less curvature in the green bars in the middle chart; and | HJ35: After TT | HK35: =HJ55 -> 0.3167727589 | HL35: Great result after redistribution! | JC35: 10 | JD35: 338.9212748 | JE35: F | JH35: 6 | JI35: 52.26818253 | JJ35: E
C36: 24.20866249 | FE36: 0.3 | FF36: 44.89187307 | FG36: 88.27973774 | FH36: 0.07806950613 | FI36: 0.005821961503 | HE36: the green Lorenz curve is closer to the red diagonal, making the Gini fall. | HJ36: %DGini | HK36: =(HK35-HK34)/HK34 -> -0.4066763978 | HL36: Inequality falls by a lot! | JC36: 3 | JD36: 44.89187307 | JE36: G | JH36: 7 | JI36: 62.49391835 | JJ36: B
A37: =FK26 -> 0.5338954286 | B37: Gini | C37: 2.244593653 | FE37: 0.4 | FF37: 45.88231751 | FG37: 134.1620552 | FH37: 0.1186451802 | FI37: 0.009835734318 | FJ37: We add them up to get the total area under | HL37: Press F9 repeatedly. | JC37: 9 | JD37: 188.7166832 | JE37: H | JH37: 8 | JI37: 85.94823559 | JJ37: A
C38: 11.7947927 | FE38: 0.5 | FF38: 47.92368752 | FG38: 182.0857428 | FH38: 0.1610261242 | FI38: 0.01398356522 | FJ38: the blue Lorenz Curve as computed below. | JC38: 4 | JD38: 45.88231751 | JE38: I | JH38: 9 | JI38: 188.7166832 | JJ38: H
C39: 2.294115875 | FE39: 0.6 | FF39: 58.07575837 | FG39: 240.1615011 | FH39: 0.2123849738 | FI39: 0.0186705549 | HF39: Data for After TT Lorenz Curve | JC39: 1 | JD39: 14.92424512 | JE39: J | JH39: 10 | JI39: 338.9212748 | JJ39: F
C40: 0.7462122559 | D40: =MAX(C31:C40) -> 24.20866249 | E40: max | FE40: 0.7 | FF40: 69.43768705 | FG40: 309.5991882 | FH40: 0.2737916575 | FI40: 0.02430883156 | FJ40: Display rounded for viewing. | HF40: Fraction of Pop | HG40: Inc at Rank | HH40: Cum Inc | HI40: Cum Share | HJ40: Trapezoid area | JD40: =SUM(JD30:JD39) -> 910.4340373 | JE40: total output | JI40: =SUM(JI30:JI39) -> 910.4340373 | JJ40: total output
D41: =AVERAGE(C31:C40) -> 5.653919316 | E41: avg | FE41: 0.8 | FF41: 101.1155713 | FG41: 410.7147595 | FH41: 0.3632124342 | FI41: 0.03185020458 | HF41: 0 | HG41: 0 | HH41: =HG41 -> 0 | HI41: 0
D42: =D40/D41 -> 4.281748842 | E42: max/avg ratio | FE42: 0.9 | FF42: 235.895854 | FG42: 646.6106135 | FH42: 0.5718251158 | FI42: 0.0467518775 | HF42: 0.1 | HG42: =HB25 -> 52.26818253 | HH42: =HG42+HH41 -> 52.26818253 | HI42: =HH42/$HH$51 -> 0.04622296465 | HJ42: =(HI42+HI41)/2*0.1 -> 0.002311148232 | JA42: These two graphs (and the Ginis below them) show that After E (after taxes, lower effort), output produced falls for those who are taxed (so total output falls):
FE43: 1 | FF43: 484.1732497 | FG43: 1130.783863 | FH43: 1 | FI43: 0.07859125579 | HF43: 0.2 | HG43: 62.49391835 | HH43: =HG43+HH42 -> 114.7621009 | HI43: =HH43/$HH$51 -> 0.10148898 | HJ43: =(HI43+HI42)/2*0.1 -> 0.007385597232
FI44: =SUM(FI34:FI43) -> 0.2330522857 | FJ44: B: sum trapezoid areas, area below the blue Lorenz Curve | HF44: 0.3 | HG44: 69.95867011 | HH44: 184.720771 | HI44: 0.1633563911 | HJ44: =(HI44+HI43)/2*0.1 -> 0.01324226855
FI45: =0.5-FI44 -> 0.2669477143 | FJ45: A: area between red diagonal and blue Lorenz Curve | HF45: 0.4 | HG45: 78.9347914 | HH45: 263.6555624 | HI45: 0.2331617659 | HJ45: 0.01982590785
FI46: =FI45/(FI44+FI45) -> 0.5338954286 | FJ46: Gini computed by A/(A+B) | HF46: 0.5 | HG46: 81.02919291 | HH46: 344.6847553 | HI46: 0.3048193085 | HJ46: 0.02689905372 | JI46: Press F9 a few times to help you answer Q12.
FI47: =FK26 -> 0.5338954286 | FJ47: Gini computed by GINI user-defined function in this Excel workbook | HF47: 0.6 | HG47: 83.55107604 | HH47: 428.2358313 | HI47: 0.3787070591 | HJ47: 0.03417631838
FJ48: The Gini ranges from 0 (perfect equality) to 1 (1 person has all income). | HF48: 0.7 | HG48: 85.94823559 | HH48: 514.1840669 | HI48: 0.4547147193 | HJ48: 0.04167108892
HF49: 0.8 | HG49: 88.96183826 | HH49: 603.1459052 | HI49: 0.5333874358 | HJ49: 0.04940510775
HF50: 0.9 | HG50: 188.7166832 | HH50: 791.8625884 | HI50: 0.700277581 | HJ50: 0.06168325084 | JI50: 12) Why does the decrease in effort after taxes reduce the Gini coefficient?
FI51: So the way the Gini works is you sort the incomes, then you cumulate (as in the chart to the left). | HF51: 1 | HG51: 338.9212748 | HH51: 1130.783863 | HI51: 1 | HJ51: 0.08501387905
FI52: then you create the Lorenz Curve as the percentage of cumulated income, and, finally, | HJ52: =SUM(HJ42:HJ51) -> 0.3416136205 | HK52: B: sum trapezoid areas, area below the Lorenz Curve
FI53: you compute how far away the Lorenz Curve is from perfect equality (the diagonal line). | HJ53: =0.5-HJ52 -> 0.1583863795 | HK53: A: area between red diagonal and green Lorenz Curve
HJ54: =HJ53/0.5 -> 0.3167727589 | HK54: Gini computed by A/(A+B) | JG54: Gini | JH54: Total Output
HJ55: =gini(HG42:HG51) -> 0.3167727589 | HK55: Gini computed by GINI user-defined function in this Excel workbook | JF55: Initial | JG55: =FK26 -> 0.5338954286 | JH55: =JC24 -> 1130.783863
JF56: After E | JG56: =gini(JI30:JI39) -> 0.4719952953 | JH56: =JF24 -> 910.4340373
JF57: %D | JG57: =(JG56-JG55)/JG55 -> -0.1159405568 | JH57: =(JH56-JH55)/JH55 -> -0.1948646714
JD58: Data for After E (Decrease in Effort from taxes)
JD59: Fraction of Pop | JE59: Inc at Rank | JF59: Cum Share | JG59: Trapezoid area
JD60: 0 | JE60: 0 | JF60: 0
JD61: 0.1 | JE61: =JI30 -> 14.92424512 | JF61: =cumshare($JE$61:$JE$70,JE61) -> 0.01639245075 | JG61: =(JF61+JF60)/2*0.1 -> 0.0008196225376
JD62: 0.2 | JE62: 28.46361955 | JF62: 0.04765624185 | JG62: 0.00320243463
JD63: 0.3 | JE63: 44.89187307 | JF63: 0.09696445225 | JG63: 0.007231034705
JD64: 0.4 | JE64: 45.88231751 | JF64: 0.1473605443 | JG64: 0.01221624983
JD65: 0.5 | JE65: 47.92368752 | JF65: 0.1999988306 | JG65: 0.01736796874
JD66: 0.6 | JE66: 52.26818253 | JF66: 0.2574090112 | JG66: 0.02287039209
JD67: 0.7 | JE67: 62.49391835 | JF67: 0.326050907 | JG67: 0.02917299591
JD68: 0.8 | JE68: 85.94823559 | JF68: 0.4204544905 | JG68: 0.03732526987
JD69: 0.9 | JE69: 188.7166832 | JF69: 0.6277365949 | JG69: 0.05240955427
JD70: 1 | JE70: 338.9212748 | JF70: 1 | JG70: 0.08138682975
JG71: =SUM(JG61:JG70) -> 0.2640023523 | JH71: B: sum trapezoid areas, area below the orange Lorenz Curve
JG72: =0.5-JG71 -> 0.2359976477 | JH72: A: area between red diagonal and orange Lorenz Curve
JG73: =JG72/0.5 -> 0.4719952953 | JH73: by A/(A+B)
JG74: =gini(JE61:JE70) -> 0.4719952953 | JH74: by GINI function
JA76: We have reached the last step -- we need to redistribute the (smaller) output and compare it to the Initial distribution.
JJ78: Click in cells JJ81:JJ90 to see that taxes (-) and transfers (+) are applied to After-tax Output, not Initial Output.
JB79: =AVERAGE(JB81:JB90) -> 113.0783863 | JC79: avg income | JJ79: =AVERAGE(JJ81:JJ90) -> 91.04340373 | JK79: avg income
JA80: Rank | JB80: Initial Output | JC80: Person | JD80: Initial Tax % | JE80: After-tax Effort | JF80: After E Output | JG80: Tax | JH80: Transfer % Tax | JI80: Transfer | JJ80: After TET | JK80: Person | JL80: Rank
JA81: 1 | JB81: =VLOOKUP(JA81,$FA$16:$FB$25,2,FALSE) -> 14.92424512 | JC81: =VLOOKUP(JA81,$FA$16:$FC$25,3,FALSE) -> J | JD81: 0 | JE81: =100%-JD81 -> 1 | JF81: =JE81*JB81 -> 14.92424512 | JG81: =JD81*JF81 -> 0 | JH81: 0.3 | JI81: =JH81*$JG$91 -> 49.13644935 | JJ81: =JF81-JG81+JI81 -> 64.06069447 | JK81: =JC81 -> J | JL81: =_xlfn.RANK.AVG(JJ81,$JJ$81:$JJ$90,1) -> 3
JA82: 2 | JB82: 28.46361955 | JC82: D | JD82: 0 | JE82: =100%-JD82 -> 1 | JF82: 28.46361955 | JG82: =JD82*JF82 -> 0 | JH82: 0.25 | JI82: 40.94704113 | JJ82: 69.41066068 | JK82: D | JL82: =_xlfn.RANK.AVG(JJ82,$JJ$81:$JJ$90,1) -> 5
JA83: 3 | JB83: 44.89187307 | JC83: G | JD83: 0 | JE83: 1 | JF83: 44.89187307 | JG83: 0 | JH83: 0.2 | JI83: 32.7576329 | JJ83: 77.64950597 | JK83: G | JL83: 8
JA84: 4 | JB84: 45.88231751 | JC84: I | JD84: 0 | JE84: 1 | JF84: 45.88231751 | JG84: 0 | JH84: 0.15 | JI84: 24.56822468 | JJ84: 70.45054219 | JK84: I | JL84: 6
JA85: 5 | JB85: 47.92368752 | JC85: C | JD85: 0 | JE85: 1 | JF85: 47.92368752 | JG85: 0 | JH85: 0.1 | JI85: 16.37881645 | JJ85: 64.30250397 | JK85: C | JL85: 4
JA86: 6 | JB86: 58.07575837 | JC86: E | JD86: 0.1 | JE86: 0.9 | JF86: 52.26818253 | JG86: 5.226818253 | JH86: 0 | JI86: 0 | JJ86: 47.04136428 | JK86: E | JL86: 1
JA87: 7 | JB87: 69.43768705 | JC87: B | JD87: 0.1 | JE87: 0.9 | JF87: 62.49391835 | JG87: 6.249391835 | JH87: 0 | JI87: 0 | JJ87: 56.24452651 | JK87: B | JL87: 2
JA88: 8 | JB88: 101.1155713 | JC88: A | JD88: 0.15 | JE88: 0.85 | JF88: 85.94823559 | JG88: 12.89223534 | JH88: 0 | JI88: 0 | JJ88: 73.05600025 | JK88: A | JL88: 7
JA89: 9 | JB89: 235.895854 | JC89: H | JD89: 0.2 | JE89: 0.8 | JF89: 188.7166832 | JG89: 37.74333664 | JH89: 0 | JI89: 0 | JJ89: 150.9733466 | JK89: H | JL89: 9
JA90: 10 | JB90: 484.1732497 | JC90: F | JD90: 0.3 | JE90: 0.7 | JF90: 338.9212748 | JG90: 101.6763824 | JH90: 0 | JI90: 0 | JJ90: 237.2448924 | JK90: F | JL90: 10 | JM90: Press F9 a few times and look carefully at row 90.
JB91: =SUM(JB81:JB90) -> 1130.783863 | JF91: =SUM(JF81:JF90) -> 910.4340373 | JG91: =SUM(JG81:JG90) -> 163.7881645 | JI91: =SUM(JI81:JI90) -> 163.7881645 | JJ91: =SUM(JJ81:JJ90) -> 910.4340373 | JM91: Lesson: The highest income person in initial (cell JB90) can fall quite a bit (cell JJ90) because
JM92: 1) They are taxed at 30% and
JM93: 2) They reduce their effort to 70%.
JB95: =AVERAGE(JB97:JB106) -> 91.04340373 | JC95: avg income
JA96: Rank | JB96: After TET | JC96: Person | JN96: The Final Question! This is the end!
JA97: 1 | JB97: =INDEX($JJ$81:$JJ$90,MATCH(JA97,$JL$81:$JL$90,0)) -> 47.04136428 | JC97: =INDEX($HI$9:$HI$18,MATCH(JA97,$HJ$9:$HJ$18,0)) -> E | JN97: 13) So, what's the trade-off, according to this model? To get lower inequality, what do we have to give up? Why?
JA98: 2 | JB98: =INDEX($JJ$81:$JJ$90,MATCH(JA98,$JL$81:$JL$90,0)) -> 56.24452651 | JC98: B
JA99: 3 | JB99: 64.06069447 | JC99: C
JA100: 4 | JB100: 64.30250397 | JC100: I
JA101: 5 | JB101: 69.41066068 | JC101: J
JA102: 6 | JB102: 70.45054219 | JC102: D
JA103: 7 | JB103: 73.05600025 | JC103: A
JA104: 8 | JB104: 77.64950597 | JC104: G
JA105: 9 | JB105: 150.9733466 | JC105: H | JK105: Gini | JL105: Total Output
JA106: 10 | JB106: =INDEX($JJ$81:$JJ$90,MATCH(JA106,$JL$81:$JL$90,0)) -> 237.2448924 | JC106: F | JJ106: Initial | JK106: =FK26 -> 0.5338954286 | JL106: =JC24 -> 1130.783863
JB107: =SUM(JB97:JB106) -> 910.4340373 | JC107: total output | JJ107: After TET | JK107: =JI126 -> 0.2713187139 | JL107: =JF24 -> 910.4340373
JJ108: %D | JK108: =(JK107-JK106)/JK106 -> -0.4918130042 | JL108: =(JL107-JL106)/JL106 -> -0.1948646714
JK109: Inequality falls by a lot just like before, but notice that output has fallen. This is different from before.
JE110: Data for After TET Lorenz Curve | JK110: Press F9 repeatedly.
JE111: Fraction of Pop | JF111: Inc at Rank | JG111: Cum Inc | JH111: Cum Share | JI111: Trapezoid area | JK111: So, the key takeaway:
JE112: 0 | JF112: 0 | JG112: =JF112 -> 0 | JH112: 0 | JL112: Social cooperation leads to a massive increase in output.
JE113: 0.1 | JF113: =JB97 -> 47.04136428 | JG113: =JF113+JG112 -> 47.04136428 | JH113: =JG113/$JG$122 -> 0.05166916257 | JI113: =(JH113+JH112)/2*0.1 -> 0.002583458128 | JL113: Distributing the output is super complicated and affects productivity -- how and how much is the subject of great debate!
JE114: 0.2 | JF114: 56.24452651 | JG114: =JF114+JG113 -> 103.2858908 | JH114: =JG114/$JG$122 -> 0.1134468688 | JI114: =(JH114+JH113)/2*0.1 -> 0.008255801569
JE115: 0.3 | JF115: 64.06069447 | JG115: 167.3465853 | JH115: 0.1838096758 | JI115: =(JH115+JH114)/2*0.1 -> 0.01486282723
JE116: 0.4 | JF116: 64.30250397 | JG116: 231.6490892 | JH116: 0.2544380809 | JI116: 0.02191238784
JE117: 0.5 | JF117: 69.41066068 | JG117: 301.0597499 | JH117: 0.3306771689 | JI117: 0.02925576249
JE118: 0.6 | JF118: 70.45054219 | JG118: 371.5102921 | JH118: 0.408058439 | JI118: 0.0369367804
JE119: 0.7 | JF119: 73.05600025 | JG119: 444.5662923 | JH119: 0.488301485 | JI119: 0.0448179962
JE120: 0.8 | JF120: 77.64950597 | JG120: 522.2157983 | JH120: 0.5735899329 | JI120: 0.05309457089
JE121: 0.9 | JF121: 150.9733466 | JG121: 673.1891449 | JH121: 0.7394156164 | JI121: 0.06565027747
JE122: 1 | JF122: 237.2448924 | JG122: 910.4340373 | JH122: 1 | JI122: 0.08697078082
JI123: =SUM(JI113:JI122) -> 0.364340643 | JJ123: B: sum trapezoid areas, area below the Lorenz Curve
JI124: =0.5-JI123 -> 0.135659357 | JJ124: A: area between red diagonal and purple Lorenz Curve
JI125: =JI124/0.5 -> 0.2713187139 | JJ125: Gini computed by A/(A+B)
JI126: =gini(JF113:JF122) -> 0.2713187139 | JJ126: Gini computed by GINI user-defined function in this Excel workbook
JA201: Below, we compare redistribution with no effort effect (After TT) and with a decrease in effort (After TET) to Initial:
JK213: Gini | JL213: Total Output
JA214: These graphs are confusing, so I left them out, but I decided not to delete them in case someone wanted to use them. | JJ214: Initial | JK214: =FK26 -> 0.5338954286 | JL214: =JC24 -> 1130.783863
JA215: After TT is not a viable option, but comparing it to After TET shows that they end up with similar Ginis. | JJ215: After TT | JK215: =HK35 -> 0.3167727589 | JL215: =JC24 -> 1130.783863
JJ216: After TET | JK216: =JI126 -> 0.2713187139 | JL216: =JF24 -> 910.4340373

Sheet Sheet1 (hidden)
A1: A Model of Association
B3: 1 | C3: individual productivty, I
B4: 10 | C4: social productivity, S | O4: =SUM(K9:N18) -> 37.38001536 | P4: middle 8
K5: Redistribution | O5: =J19-O4 -> 8.305247411 | P5: amount left
B6: 1 | C6: Effort | D6: 1 | F6: IF No effect on Effort | K6: % from avg | L6: % from avg | M6: % from avg | N6: % from avg | O6: =VLOOKUP(1,I9:J18,2,FALSE) -> 0.3160902874 | P6: poorest before
B7: Independent | D7: Cooperation | F7: Egalitarian | J7: =AVERAGE(J9:J18) -> 4.568526277 | K7: 0.02 | L7: 0.04 | M7: 0.04 | N7: 0.05 | O7: =O6+1 -> 1.316090287 | P7: poorest after | Q7: Cooperation
A8: Person | B8: Output | D8: Output | F8: Distribution | H8: Person | I8: Rank | J8: Initial | K8: 6 to 5 | L8: 7 to 4 | M8: 8 to 3 | N8: 9 to 2 | O8: 10 to 1 | P8: Person | Q8: Output | R8: Rank | S8: Redistribution
A9: A | B9: =RAND()*I*$B$6 -> 0.8273148002 | D9: =B9*S*$D$6 -> 8.273148002 | F9: =$D$19/10 -> 4.568526277 | H9: A | I9: =_xlfn.RANK.AVG(J9,$J$9:$J$18,1) -> 9 | J9: =D9 -> 8.273148002 | K9: =IF(I9=5,$J$7+$K$7*($J$7-J9),IF(I9=6,$J$7+$K$7*(J9-$J$7),"")) ->  | L9: =IF(I9=4,$J$7+$L$7*($J$7-J9),IF(I9=7,$J$7+$L$7*(J9-$J$7),"")) ->  | M9: =IF(I9=3,$J$7+$M$7*($J$7-J9),IF(I9=8,$J$7+$M$7*(J9-$J$7),"")) ->  | N9: =IF(I9=2,$J$7+$N$7*($J$7-J9),IF(I9=9,$J$7+$N$7*(J9-$J$7),"")) -> 4.753757363 | O9: =IF(I9=1,$O$7,IF(I9=10,$O$5-$O$7,"")) ->  | P9: A | Q9: =D9 -> 8.273148002 | R9: =_xlfn.RANK.AVG(S9,$S$9:$S$18,1) -> 9 | S9: =ROUND(SUM(K9:O9),6) -> 4.753757
A10: B | B10: 0.1092306642 | D10: 1.092306642 | F10: 4.568526277 | H10: B | I10: 2 | J10: 1.092306642 | N10: 4.742337259 | P10: B | Q10: 1.092306642 | R10: =_xlfn.RANK.AVG(S10,$S$9:$S$18,1) -> 8 | S10: =ROUND(SUM(K10:O10),6) -> 4.742337
A11: C | B11: 0.2266601734 | D11: 2.266601734 | F11: 4.568526277 | H11: C | I11: 4 | J11: 2.266601734 | L11: 4.660603259 | P11: C | Q11: 2.266601734 | R11: 5 | S11: 4.660603
A12: D | B12: 0.6458870087 | D12: 6.458870087 | F12: 4.568526277 | H12: D | I12: 7 | J12: 6.458870087 | L12: 4.644140029 | P12: D | Q12: 6.458870087 | R12: 4 | S12: 4.64414
A13: E | B13: 0.3687072639 | D13: 3.687072639 | F13: 4.568526277 | H13: E | I13: 5 | J13: 3.687072639 | K13: 4.58615535 | P13: E | Q13: 3.687072639 | R13: 2 | S13: 4.586155
A14: F | B14: 0.5621545509 | D14: 5.621545509 | F14: 4.568526277 | H14: F | I14: 6 | J14: 5.621545509 | K14: 4.589586661 | P14: F | Q14: 5.621545509 | R14: 3 | S14: 4.589587
A15: G | B15: 0.03160902874 | D15: 0.3160902874 | F15: 4.568526277 | H15: G | I15: 1 | J15: 0.3160902874 | O15: 1.316090287 | P15: G | Q15: 0.3160902874 | R15: 1 | S15: 1.31609
A16: H | B16: 0.1307761956 | D16: 1.307761956 | F16: 4.568526277 | H16: H | I16: 3 | J16: 1.307761956 | M16: 4.69895685 | P16: H | Q16: 1.307761956 | R16: 6 | S16: 4.698957
A17: I | B17: 0.7967334025 | D17: 7.967334025 | F17: 4.568526277 | H17: I | I17: 8 | J17: 7.967334025 | M17: 4.704478587 | P17: I | Q17: 7.967334025 | R17: 7 | S17: 4.704479
A18: J | B18: 0.8694531886 | D18: 8.694531886 | F18: =$D$19/10 -> 4.568526277 | H18: J | I18: 10 | J18: 8.694531886 | O18: 6.989157124 | P18: J | Q18: 8.694531886 | R18: 10 | S18: 6.989157
B19: =SUM(B9:B18) -> 4.568526277 | D19: =SUM(D9:D18) -> 45.68526277 | F19: =SUM(F9:F18) -> 45.68526277 | J19: =SUM(J9:J18) -> 45.68526277 | Q19: =SUM(Q9:Q18) -> 45.68526277 | S19: =SUM(S9:S18) -> 45.685262
I22: 1 | J22: =VLOOKUP(I22,$I$9:$J$18,2,FALSE) -> 0.3160902874 | R22: 1 | S22: =VLOOKUP(R22,$R$9:$S$18,2,FALSE) -> 1.31609
I23: 2 | J23: 1.092306642 | R23: 2 | S23: =VLOOKUP(R23,$R$9:$S$18,2,FALSE) -> 4.586155
I24: 3 | J24: 1.307761956 | R24: 3 | S24: 4.589587
I25: 4 | J25: 2.266601734 | R25: 4 | S25: 4.64414
I26: 5 | J26: 3.687072639 | R26: 5 | S26: 4.660603
I27: 6 | J27: 5.621545509 | R27: 6 | S27: 4.698957
I28: 7 | J28: 6.458870087 | R28: 7 | S28: 4.704479
I29: 8 | J29: 7.967334025 | R29: 8 | S29: 4.742337
I30: 9 | J30: 8.273148002 | R30: 9 | S30: 4.753757
I31: 10 | J31: 8.694531886 | R31: 10 | S31: 6.989157
